bitfinex/quotes_ETHUSD_20260106
["timestamp","ask_amount","ask_price","bid_price","bid_amount"]
[1767712709486,0.002,3287.7,3286.2,3.04299158]
[1767712709811,0.002,3287.7,3285.9,3.04330249]
[1767712709812,2.14750991,3287.6,3285.9,3.04330249]
[1767712710013,2.14750991,3287.6,3286.0,2.39461986]
[1767712710305,2.14750991,3287.6,3286.2,2.05985748]
[1767712710537,2.14750991,3287.6,3286.0,0.30433025]
[1767712710846,2.14750991,3287.4,3286.0,0.30433025]
[1767712711045,2.93950991,3287.4,3285.8,2.87529146]
[1767712711252,2.93950991,3287.4,3285.9,2.08675818]
[1767712711609,2.93950991,3287.4,3285.9,5.13004651]
[1767712711911,2.93950991,3287.4,3285.9,2.08675818]
[1767712712126,2.13589025,3287.2,3285.9,2.08675818]
[1767712712555,2.13589025,3287.2,3286.0,3.04321279]
[1767712712720,3.04182509,3287.5,3286.1,2.08675818]
[1767712712912,3.04175743,3287.6,3286.3,5.129694]
[1767712713347,6.08351486,3287.6,3286.3,2.08675818]
[1767712713523,0.51796477,3287.5,3286.3,2.08675818]
[1767712713907,2.65385502,3287.5,3285.9,2.87175818]
[1767712714169,2.13589025,3287.3,3285.9,2.87175818]
[1767712714449,0.51796477,3287.5,3286.1,3.0430667]
[1767712714613,0.51796477,3287.5,3286.3,2.08675818]
[1767712714614,0.96432371,3287.4,3286.3,2.08675818]
[1767712714820,6.08351486,3287.6,3286.3,2.08675818]
[1767712715027,6.08351486,3287.6,3286.3,5.12960289]
[1767712715230,6.08351486,3287.6,3286.3,5.16003224]
[1767712715553,6.08351486,3287.6,3286.4,0.03042843]
[1767712715764,3.04175743,3287.6,3286.6,2.08675818]
[1767712715931,3.04175743,3287.6,3286.7,0.29021857]
[1767712716310,3.04366079,3287.7,3286.7,2.37697675]
[1767712716730,6.08532158,3287.7,3286.7,2.37697675]
[1767712717462,0.002,3287.7,3286.7,2.37697675]
[1767712717673,0.002,3287.7,3286.7,5.41952962]
[1767712717817,0.002,3287.7,3286.8,0.54195296]
[1767712718022,0.002,3287.7,3286.7,2.37697675]
[1767712719251,0.002,3287.7,3286.7,5.41953]
[1767712719750,0.002,3287.7,3286.8,2.1171829]
[1767712721229,0.002,3287.7,3286.8,2.08675818]
[1767712721938,0.002,3287.7,3286.8,5.12918209]
[1767712722144,0.002,3287.7,3286.9,0.84923881]
[1767712722652,0.002,3287.7,3286.8,2.08675818]
[1767712722826,0.002,3287.7,3286.9,0.785]
[1767712723027,0.002,3287.7,3286.7,3.33276053]
[1767712723028,0.002,3287.7,3286.7,0.29021857]
[1767712723251,0.002,3287.7,3286.8,0.785]
[1767712724358,0.002,3287.7,3286.8,3.82745687]
[1767712724519,0.002,3287.7,3286.8,0.785]
[1767712724725,0.002,3287.7,3286.7,3.04252817]
[1767712724726,0.002,3287.7,3286.7,0.785]
[1767712725225,2.13789025,3287.7,3286.4,2.08675818]
[1767712725554,0.21378903,3287.6,3286.4,2.08675818]
[1767712725755,0.002,3287.7,3286.6,2.08675818]
[1767712725975,0.002,3287.7,3286.4,0.03042843]
[1767712725976,0.002,3287.7,3286.9,2.08675818]
[1767712726269,0.002,3287.7,3287.1,2.08675818]
[1767712726553,0.002,3287.7,3287.1,2.68120507]
[1767712726761,0.002,3287.7,3286.7,3.04248879]
[1767712726762,0.002,3287.7,3286.7,2.08675818]
[1767712727050,0.002,3287.7,3286.8,5.94460097]
[1767712727248,0.002,3287.7,3286.9,3.04237781]
[1767712727422,0.002,3287.7,3286.9,3.94108798]
[1767712727820,0.002,3287.7,3286.9,0.89871017]
[1767712728756,0.002,3287.7,3286.9,3.94107]
[1767712729058,0.002,3287.4,3286.9,6.02782818]
[1767712729952,0.002,3287.4,3287.0,0.785]
[1767712730127,0.002,3287.4,3287.0,1.46932529]
[1767712731261,0.002,3287.4,3286.7,0.001]
[1767712731458,2.13789025,3287.4,3286.2,0.001]
[1767712731678,2.13789025,3287.4,3286.2,0.786]
[1767712731679,0.002,3287.4,3286.2,0.786]
[1767712732257,0.002,3287.4,3286.6,5.12936764]
[1767712732434,0.002,3287.4,3286.7,4.37086255]
[1767712732636,0.002,3287.4,3286.7,6.45762073]
[1767712732849,0.002,3287.4,3286.7,6.42719508]
[1767712733059,0.002,3287.4,3286.7,3.38469494]
[1767712733381,0.002,3287.4,3286.7,6.45767537]
[1767712733557,0.002,3287.4,3286.7,3.38469494]
[1767712733949,0.002,3287.4,3286.8,0.785]
[1767712734275,0.002,3287.4,3286.4,3.0427828]
[1767712734276,0.002,3287.4,3286.6,0.785]
[1767712734777,0.002,3287.4,3286.4,0.785]
[1767712737082,0.002,3287.4,3286.3,5.12965136]
[1767712737348,0.61054651,3287.4,3286.3,2.87175818]
[1767712737950,0.61054651,3287.4,3286.3,5.91468369]
[1767712738488,0.61054651,3287.4,3286.3,2.87175818]
[1767712738795,3.04201016,3287.3,3286.3,5.91467585]
[1767712738997,3.65247889,3287.4,3286.3,5.91467585]
[1767712739153,3.65247889,3287.4,3286.4,2.9942148]
[1767712739845,6.69441127,3287.4,3286.4,2.9942148]
[1767712740383,2.04248272,3287.3,3286.2,0.001]
[1767712740987,3.0421027,3287.2,3286.2,0.001]
[1767712741486,6.0842054,3287.2,3286.2,0.001]
[1767712741643,2.0227738,3287.1,3286.2,0.001]
[1767712742074,0.5306021,3287.4,3286.5,2.0009556]
[1767712742275,0.002,3287.7,3286.7,1.9999556]
[1767712742586,0.002,3287.1,3286.8,2.7849556]
[1767712742951,0.002,3287.1,3286.8,1.9999556]
[1767712743159,0.002,3287.1,3286.8,0.785]
[1767712743598,0.002,3287.1,3286.9,1.9999556]
[1767712743744,0.002,3287.1,3287.0,0.58274039]
[1767712744290,0.002,3287.1,3286.9,1.9999556]
[1767712745083,0.002,3287.1,3286.5,0.786]
[1767712745661,0.002,3287.1,3286.5,0.001]
[1767712747583,0.002,3287.1,3286.2,0.786]
[1767712747950,0.002,3287.1,3286.3,1.9999556]
[1767712748151,0.002,3287.1,3286.4,2.27855116]
[1767712748369,0.002,3287.1,3286.6,1.9999556]
[1767712748598,0.002,3287.1,3286.7,0.785]
[1767712748805,3.04370119,3287.7,3286.7,0.785]
[1767712749160,3.04370119,3287.7,3286.4,0.27859556]
[1767712749161,0.002,3287.7,3286.4,1.06359556]
[1767712749386,0.002,3287.7,3286.4,0.27859556]
[1767712749551,2.0247738,3287.7,3286.2,5.82895105]
[1767712750379,2.0247738,3287.7,3286.3,3.04290629]
[1767712750762,2.0247738,3287.7,3286.2,0.001]
[1767712751089,2.0227738,3287.5,3286.2,0.001]
[1767712751376,2.0227738,3287.3,3286.2,0.001]
[1767712752581,1.11479715,3287.4,3286.2,0.001]
[1767712752582,2.0227738,3287.1,3286.2,0.001]
[1767712753267,8.1073494,3287.0,3286.2,0.001]
[1767712753465,1.1149621,3286.9,3286.2,0.001]
[1767712754570,2.0227738,3287.4,3286.2,0.001]
[1767712754571,2.0227738,3287.8,3286.2,2.0009556]
[1767712754779,0.33349589,3287.9,3286.3,2.03038495]
[1767712754780,6.08346514,3287.6,3286.3,2.03038495]
[1767712755083,6.08346514,3287.6,3286.3,1.9999556]
[1767712755578,5.06646194,3287.7,3286.5,0.001]
[1767712755782,0.002,3287.0,3286.5,0.001]
[1767712755984,0.002,3287.0,3286.2,0.001]
[1767712758863,2.0247738,3287.0,3286.2,0.001]
[1767712759210,0.20247738,3286.9,3286.2,0.001]
[1767712759396,3.04247292,3286.8,3286.2,0.001]
[1767712759687,6.08494584,3286.8,3286.2,0.001]
[1767712762192,6.08494584,3286.8,3285.3,5.04374156]
[1767712762485,6.08494584,3286.8,3285.4,5.82869692]
[1767712762689,0.93298516,3286.7,3285.4,5.82869692]
[1767712762859,0.93298516,3286.7,3285.4,1.9999556]
[1767712763184,2.0227738,3286.6,3285.2,0.001]
[1767712763685,6.08550128,3286.5,3285.2,3.04494421]
[1767712763885,6.08550128,3286.5,3285.2,2.0009556]
[1767712764092,0.81082751,3286.4,3285.2,2.0009556]
[1767712764290,2.83360131,3286.4,3285.2,2.0009556]
[1767712765380,2.0227738,3286.3,3285.2,0.001]
[1767712765885,6.08605684,3286.2,3285.2,0.001]
[1767712766086,0.793,3286.1,3285.2,0.001]
[1767712766294,0.50453873,3286.0,3285.2,0.001]
[1767712766989,0.50453873,3286.0,3285.2,2.0009556]
[1767712767191,6.08605684,3286.2,3285.2,2.0009556]
[1767712767864,6.08587164,3286.3,3285.5,0.001]
[1767712768059,3.04293582,3286.3,3285.5,2.0009556]
[1767712768301,0.81082751,3286.4,3285.7,1.9999556]
[1767712768302,0.002,3286.4,3285.7,1.9999556]
[1767712770104,0.002,3286.4,3285.8,1.9999556]
[1767712770265,0.002,3286.4,3285.9,1.9999556]
[1767712770996,0.002,3286.4,3285.8,0.50738439]
[1767712771196,0.002,3286.4,3285.5,2.7859556]
[1767712771788,0.002,3286.4,3285.5,0.001]
[1767712772879,0.002,3286.4,3285.5,2.10661923]
[1767712773877,0.002,3286.4,3285.5,0.001]
[1767712773878,2.08618084,3286.4,3285.5,0.001]
[1767712774070,2.08418084,3286.1,3285.5,0.001]
[1767712775194,9.12908526,3286.2,3285.5,0.001]
[1767712775582,9.92208526,3286.2,3285.5,0.001]
[1767712776265,12.0062661,3286.2,3285.5,0.001]
[1767712776485,2.08418084,3286.1,3285.5,0.001]
[1767712776710,1.20062661,3286.0,3285.5,0.001]
[1767712777193,1.20062661,3286.0,3282.9,3.198]
[1767712777194,1.20062661,3286.0,3284.0,2.10561923]
[1767712777195,2.08418084,3285.9,3284.0,2.10561923]
[1767712777366,2.08418084,3285.9,3283.9,0.94454332]
[1767712777567,2.08418084,3285.9,3283.9,2.89161923]
[1767712777796,2.41266159,3285.8,3284.0,2.39478115]
[1767712778004,2.41266159,3285.8,3284.0,0.28916192]
[1767712778005,2.08418084,3285.8,3284.0,0.28916192]
[1767712778307,2.08418084,3285.6,3284.0,2.10561923]
[1767712778533,12.17396596,3285.7,3284.0,2.10561923]
[1767712778534,6.08698298,3285.7,3284.7,2.10561923]
[1767712778675,6.08698298,3285.7,3284.8,2.10561923]
[1767712779000,6.08698298,3285.7,3284.4,2.13606619]
[1767712779176,6.08698298,3285.7,3284.4,2.10561923]
[1767712779376,8.17116382,3285.7,3284.5,0.21056192]
[1767712779804,2.08418084,3285.6,3284.5,0.21056192]
[1767712780311,3.04367676,3285.5,3284.5,0.21056192]
[1767712781309,6.08735352,3285.5,3284.5,0.21056192]
[1767712781612,8.17153436,3285.5,3284.5,0.21056192]
[1767712781783,8.17153436,3285.5,3284.3,0.001]
[1767712782183,2.08418084,3285.4,3284.3,0.001]
[1767712782425,8.17190494,3285.3,3284.3,0.001]
[1767712783691,5.12804289,3285.3,3284.3,0.001]
[1767712784013,3.04386205,3285.3,3284.3,0.001]
[1767712784891,8.17134908,3285.6,3284.3,0.001]
[1767712785223,0.81713491,3285.5,3284.3,2.65526043]
[1767712785403,0.81713491,3285.5,3284.4,2.10561923]
[1767712785629,0.81713491,3285.5,3284.5,0.03044603]
[1767712786031,0.81713491,3285.5,3284.5,0.81644603]
[1767712786232,0.81713491,3285.5,3284.6,2.10561923]
[1767712787042,6.0875388,3285.4,3284.6,2.10561923]
[1767712788409,3.0437694,3285.4,3284.7,0.03044418]
[1767712788603,3.0437694,3285.4,3284.7,2.13606341]
[1767712789020,3.04349149,3285.7,3284.7,2.13606341]
[1767712789221,0.38384915,3285.6,3284.7,2.13606341]
[1767712789522,0.38384915,3285.6,3284.7,2.10561923]
[1767712791011,6.08735352,3285.5,3284.7,2.10561923]
[1767712791649,0.38384915,3285.6,3284.7,2.10561923]
[1767712791650,3.4274715,3285.6,3284.7,2.10561923]
[1767712791959,0.002,3285.8,3284.9,2.10561923]
[1767712791960,3.04542186,3285.8,3284.9,2.10561923]
[1767712793110,0.002,3285.8,3284.9,2.10561923]
[1767712793539,0.002,3285.8,3284.5,2.10561923]
[1767712793743,0.002,3285.8,3284.8,2.89161923]
[1767712793950,0.002,3285.8,3284.9,2.10561923]
[1767712794153,0.002,3285.8,3285.0,2.13606063]
[1767712794908,0.002,3286.1,3285.4,2.10561923]
[1767712795422,0.002,3285.5,3285.2,0.001]
[1767712795626,0.002,3286.1,3285.2,0.001]
[1767712795825,0.002,3286.1,3285.3,0.21066192]
[1767712796515,0.002,3286.1,3285.2,0.001]
[1767712797323,6.08824204,3286.1,3285.2,0.001]
[1767712797522,1.99555334,3286.0,3285.2,0.001]
[1767712799830,6.08661248,3285.9,3285.2,0.001]
[1767712800026,9.12991872,3285.9,3285.2,0.001]
[1767712800350,1.99555334,3285.7,3285.2,0.001]
[1767712800516,1.11254721,3285.8,3285.2,0.001]
[1767712800717,3.04330624,3285.9,3285.2,0.001]
[1767712800953,0.002,3286.1,3285.2,1.95805508]
[1767712801449,3.045135,3286.1,3285.2,1.92761554]
[1767712801626,6.08827,3286.1,3285.2,0.001]
[1767712801827,8.07187326,3286.1,3285.2,0.001]
[1767712802038,1.98360326,3286.0,3285.2,0.001]
[1767712802545,0.793,3285.9,3285.2,0.001]
[1767712803052,2.77660326,3285.9,3285.2,0.001]
[1767712803355,0.27766033,3285.8,3285.2,0.001]
[1767712803654,6.08827,3286.1,3285.2,2.0083544]
[1767712803655,3.045135,3286.1,3285.2,2.0083544]
[1767712803839,0.002,3286.1,3285.2,2.0083544]
[1767712804053,0.002,3286.1,3285.4,2.0073544]
[1767712804218,3.91250462,3287.0,3285.9,2.0073544]
[1767712804219,3.11947304,3287.0,3285.9,2.0073544]
[1767712804422,3.11947304,3287.0,3286.1,2.0073544]
[1767712804423,0.07716476,3287.0,3286.1,2.0073544]
[1767712804727,0.002,3287.5,3286.9,2.0073544]
[1767712805033,0.02938161,3288.3,3287.0,2.0073544]
[1767712805765,0.002,3288.8,3287.4,2.0073544]
[1767712805963,0.006,3289.5,3288.5,2.0073544]
[1767712806278,0.59591374,3291.5,3288.5,2.0073544]
[1767712806279,0.20800732,3291.7,3289.5,2.0073544]
[1767712806562,0.20800732,3291.7,3289.4,0.17053975]
[1767712806563,0.20800732,3291.7,3290.8,0.01222307]
[1767712806564,3.24598429,3291.7,3290.8,0.01222307]
[1767712806723,3.24598429,3291.7,3290.8,0.786]
[1767712806724,2.30820169,3291.6,3290.8,0.786]
[1767712806916,2.30820169,3291.6,3290.2,0.01222307]
[1767712806917,0.32459843,3291.6,3290.2,0.01222307]
[1767712807122,0.32459843,3291.6,3289.6,0.01222307]
[1767712807123,0.32459843,3291.6,3289.4,2.16567108]
[1767712807124,2.30820169,3291.6,3289.4,2.16567108]
[1767712807354,2.30820169,3291.6,3289.4,0.15831668]
[1767712807355,1.98360326,3291.4,3289.4,0.15831668]
[1767712807721,1.98360326,3291.4,3288.2,3.04113118]
[1767712807722,1.98360326,3291.0,3288.8,0.786]
[1767712807920,1.98360326,3290.6,3288.3,0.01222307]
[1767712808148,1.98360326,3290.4,3288.3,0.786]
[1767712808365,0.9632114,3290.5,3287.7,0.01222307]
[1767712808366,1.98360326,3290.2,3287.7,0.01222307]
[1767712808518,0.002,3288.1,3288.0,0.786]
[1767712808721,0.793,3289.7,3288.0,0.786]
[1767712809239,0.793,3289.7,3287.5,0.786]
[1767712809240,1.98360326,3289.6,3287.5,0.786]
[1767712809442,0.9632114,3290.5,3287.5,0.786]
[1767712809443,1.98360326,3289.4,3287.8,0.01222307]
[1767712809752,0.27766033,3289.5,3288.2,0.01222307]
[1767712809929,0.793,3289.9,3288.2,0.01222307]
[1767712809930,1.98360326,3289.7,3288.2,0.786]
[1767712810944,9.11909538,3289.8,3288.3,0.01222307]
[1767712811135,0.793,3289.7,3288.3,0.01222307]
[1767712811652,0.793,3289.7,3287.8,0.786]
[1767712811653,1.98360326,3289.6,3287.8,0.786]
[1767712811844,1.98360326,3289.4,3287.6,0.01222307]
[1767712812049,3.04006809,3289.4,3287.9,0.01222307]
[1767712812351,1.98360326,3289.9,3287.9,0.01222307]
[1767712812352,9.11770962,3290.3,3288.5,0.01222307]
[1767712812555,1.11519129,3290.2,3288.7,0.01222307]
[1767712814156,1.11519129,3290.2,3288.3,0.785]
[1767712814157,11.10186713,3290.1,3288.3,0.785]
[1767712814333,8.06244584,3290.1,3288.4,0.01222307]
[1767712814659,0.003,3289.3,3288.6,0.01222307]
[1767712815168,0.003,3289.3,3288.7,0.01222307]
[1767712815328,0.003,3289.3,3288.9,0.01222307]
[1767712815661,0.003,3289.3,3288.8,0.785]
[1767712816063,0.003,3289.3,3288.7,0.785]
[1767712816264,0.003,3289.3,3288.4,0.01222307]
[1767712816438,0.003,3289.3,3288.4,0.27622126]
[1767712816646,0.003,3289.3,3287.6,0.01222307]
[1767712816648,1.98660326,3289.3,3287.6,0.01222307]
[1767712816955,1.98660326,3289.3,3287.3,0.01222307]
[1767712817158,1.98660326,3289.3,3287.9,0.01222307]
[1767712817348,0.19866033,3289.2,3288.1,0.01222307]
[1767712817543,1.98660326,3289.3,3288.1,0.01222307]
[1767712818150,1.98660326,3289.3,3288.3,0.01222307]
[1767712818151,0.003,3289.3,3288.3,0.01222307]
[1767712818350,3.04318577,3289.3,3288.7,0.01222307]
[1767712818631,0.003,3289.3,3288.9,0.01222307]
[1767712818862,3.0431883,3289.3,3288.9,0.01022307]
[1767712819042,3.0431883,3289.3,3288.5,0.01222307]
[1767712819043,6.38769543,3289.3,3288.5,0.01222307]
[1767712819274,6.38769543,3289.3,3288.4,0.01222307]
[1767712819439,6.38769543,3289.3,3288.4,0.785]
[1767712819641,6.38769543,3289.3,3288.3,0.01222307]
[1767712819869,0.63876954,3289.2,3288.3,0.01222307]
[1767712820035,3.04034538,3289.1,3288.3,0.04263392]
[1767712820232,3.34750713,3289.3,3288.3,0.04263392]
[1767712820233,3.04319116,3289.3,3288.5,0.01222307]
[1767712820571,0.003,3289.3,3288.9,0.01222307]
[1767712820771,0.003,3289.3,3289.1,0.01222307]
[1767712821067,3.03980278,3289.7,3289.1,0.01222307]
[1767712821362,1.98360326,3290.0,3289.2,0.01222307]
[1767712821663,6.07921212,3289.9,3289.1,0.01222307]
[1767712821850,6.07921212,3289.9,3289.2,0.785]
[1767712822166,3.03960606,3289.9,3289.2,0.785]
[1767712822355,5.02313603,3290.0,3289.3,0.01222307]
[1767712822555,0.02938011,3290.2,3289.5,0.01222307]
[1767712822760,0.02938011,3290.2,3289.3,0.01222307]
[1767712822761,6.10807318,3290.2,3289.3,0.01222307]
[1767712822960,6.10807318,3290.2,3289.5,0.01222307]
[1767712823467,6.10807318,3290.2,3289.3,0.01222307]
[1767712823672,6.10807318,3290.2,3289.1,0.01222307]
[1767712823673,9.75824466,3290.2,3289.1,0.01222307]
[1767712823969,6.7188805,3290.2,3289.1,0.79722307]
[1767712824265,6.7188805,3290.2,3289.3,0.01222307]
[1767712824563,6.7188805,3290.2,3289.1,0.785]
[1767712824766,6.7188805,3290.2,3288.1,2.0073544]
[1767712824767,1.98360326,3290.0,3288.1,2.0073544]
[1767712825077,1.98360326,3290.0,3288.2,0.01222307]
[1767712825237,1.98360326,3290.0,3288.0,0.785]
[1767712825441,1.98360326,3290.0,3288.1,0.01222307]
[1767712825752,1.98360326,3289.8,3288.1,0.79722307]
[1767712825945,1.98360326,3289.8,3288.1,0.785]
[1767712826354,0.37514213,3289.9,3288.1,0.785]
[1767712826355,1.98360326,3289.6,3288.1,0.785]
[1767712826672,1.98360326,3289.6,3288.0,0.785]
[1767712826975,1.98360326,3289.6,3288.1,0.01222307]
[1767712827138,1.98360326,3289.4,3287.9,0.01222307]
[1767712827343,1.98360326,3289.4,3288.1,0.01222307]
[1767712827542,1.98360326,3289.4,3287.9,0.79722307]
[1767712827543,1.98360326,3289.4,3287.9,0.01222307]
[1767712827849,1.98360326,3289.4,3287.8,0.785]
[1767712828073,1.98360326,3289.2,3288.0,0.01222307]
[1767712828779,6.08069076,3289.1,3288.1,0.01222307]
[1767712830245,9.12103614,3289.1,3287.6,0.03041732]
[1767712830546,9.12103614,3289.1,3286.8,0.01222307]
[1767712830547,1.98360326,3289.0,3286.8,0.01222307]
[1767712830751,1.98360326,3289.0,3287.3,0.01222307]
[1767712830752,1.98360326,3288.8,3287.3,0.01222307]
[1767712831262,1.98360326,3288.8,3287.5,0.01222307]
[1767712831478,1.98360326,3288.8,3286.9,5.84386783]
[1767712831479,1.98360326,3288.8,3286.5,0.01222307]
[1767712831789,1.93390955,3288.6,3286.5,0.01222307]
[1767712832240,1.93390955,3288.4,3287.0,0.01222307]
[1767712832550,1.93390955,3288.4,3287.2,0.01222307]
[1767712832750,6.0821701,3288.3,3287.5,0.001]
[1767712832955,0.52244288,3288.2,3287.5,0.001]
[1767712833954,3.04101918,3288.4,3287.5,0.001]
[1767712834355,3.04101918,3288.4,3287.5,0.03141825]
[1767712834602,3.1014276,3289.3,3287.6,2.02879417]
[1767712834603,0.0612006,3289.3,3287.6,2.02879417]
[1767712834882,6.0805208,3289.2,3287.8,2.02879417]
[1767712835053,6.0805208,3289.2,3288.0,0.01222307]
[1767712835377,6.0805208,3289.2,3288.1,0.0304127]
[1767712835378,0.61417214,3289.1,3288.1,0.0304127]
[1767712835543,0.61417214,3289.1,3288.0,0.20410172]
[1767712835749,3.04025294,3289.2,3288.1,0.01222307]
[1767712835948,0.0612006,3289.3,3288.3,0.01222307]
[1767712836143,3.10140091,3289.3,3288.1,0.01222307]
[1767712836348,6.14160122,3289.3,3288.1,0.01222307]
[1767712836961,6.14153552,3289.3,3288.2,0.01222307]
[1767712837178,0.0612006,3289.3,3288.3,1.02133154]
[1767712837356,3.10138121,3289.3,3288.4,0.01222307]
[1767712837877,6.14156182,3289.3,3288.3,0.99092069]
[1767712838500,6.14156182,3289.3,3288.3,0.20592069]
[1767712838664,6.14156182,3289.3,3287.6,2.02879417]
[1767712838866,6.14156182,3289.3,3287.8,0.785]
[1767712839190,9.18174243,3289.3,3287.8,0.785]
[1767712840074,6.14156182,3289.3,3287.9,0.01222307]
[1767712840280,6.14156182,3289.3,3288.1,0.01222307]
[1767712840592,9.18174243,3289.3,3288.0,0.68802691]
[1767712840753,9.18174243,3289.3,3287.8,0.01222307]
[1767712840952,9.18174243,3289.3,3287.8,0.79722307]
[1767712841359,9.18174243,3289.3,3287.8,0.785]
[1767712841558,9.18174243,3289.3,3287.6,0.01222307]
[1767712841559,11.11565198,3289.3,3287.6,0.01222307]
[1767712841859,11.11565198,3289.3,3287.7,0.785]
[1767712841860,3.12467475,3289.2,3287.7,0.785]
[1767712842000,3.32842377,3289.2,3287.7,0.785]
[1767712842367,3.32842377,3289.2,3287.6,0.30673611]
[1767712842676,0.20481483,3289.1,3287.6,0.785]
[1767712843074,2.13872438,3289.1,3287.5,0.786]
[1767712843478,1.93390955,3288.9,3287.5,3.82781322]
[1767712843679,1.93390955,3288.9,3287.5,0.786]
[1767712843991,1.93390955,3288.9,3287.6,0.03041732]
[1767712844201,1.93390955,3288.9,3287.6,0.04264039]
[1767712844202,0.80147852,3288.8,3287.6,0.04264039]
[1767712844497,6.08087564,3289.0,3287.8,0.01222307]
[1767712844688,0.002,3288.9,3287.8,0.01222307]
[1767712844873,0.002,3288.9,3287.6,0.01222307]
[1767712845078,1.93590955,3288.9,3287.7,0.785]
[1767712845469,0.002,3288.9,3287.7,0.785]
[1767712845701,0.60828756,3288.8,3287.7,0.785]
[1767712846811,0.60828756,3288.8,3287.6,0.785]
[1767712847266,0.60828756,3288.8,3287.5,0.001]
[1767712847469,0.60828756,3288.8,3287.5,0.786]
[1767712847701,0.60828756,3288.8,3287.6,2.04698842]
[1767712847702,3.04071517,3288.7,3287.6,2.04698842]
[1767712848005,6.08143034,3288.7,3287.7,0.58747784]
[1767712848174,6.08143034,3288.7,3287.6,2.0165711]
[1767712848373,3.04071517,3288.7,3287.6,2.0165711]
[1767712849347,1.93390955,3288.6,3287.5,0.001]
[1767712849474,1.93390955,3288.4,3286.6,2.0165711]
[1767712849679,1.93390955,3288.1,3286.3,0.786]
[1767712849997,1.93390955,3288.1,3286.3,0.001]
[1767712850196,1.93390955,3288.0,3286.3,0.001]
[1767712850396,1.93390955,3287.8,3286.3,0.001]
[1767712850598,1.93390955,3287.6,3285.7,0.785]
[1767712850976,1.93390955,3287.4,3285.2,0.001]
[1767712851174,1.93390955,3287.2,3285.2,0.001]
[1767712851700,1.93390955,3287.0,3285.2,0.001]
[1767712851912,1.10604953,3286.9,3285.2,0.001]
[1767712852201,2.72590955,3286.8,3285.2,0.001]
[1767712852411,1.93390955,3286.7,3285.2,0.001]
[1767712852611,1.93390955,3286.7,3284.1,0.01222307]
[1767712852612,1.93390955,3286.7,3284.3,0.001]
[1767712853175,0.84787006,3286.8,3284.3,0.001]
[1767712853176,1.93390955,3286.5,3284.3,0.001]
[1767712853377,1.93390955,3286.3,3284.3,0.001]
[1767712853608,1.93390955,3286.1,3284.3,0.001]
[1767712853814,1.93390955,3285.9,3284.3,0.001]
[1767712854175,0.793,3285.8,3284.3,0.03144788]
[1767712854376,0.793,3285.8,3284.3,0.001]
[1767712854377,1.93390955,3285.7,3284.3,0.001]
[1767712854607,2.20660051,3285.6,3284.3,0.001]
[1767712855407,0.793,3285.5,3284.3,0.001]
[1767712855707,9.1313082,3285.4,3284.3,0.001]
[1767712855910,3.24477741,3285.5,3284.4,0.01222307]
[1767712856111,3.24477741,3285.5,3284.7,0.01222307]
[1767712856112,0.20108743,3285.5,3284.7,0.01222307]
[1767712856311,0.20108743,3285.5,3284.7,0.2193694]
[1767712856515,3.24479484,3285.5,3284.7,0.2193694]
[1767712856819,3.24479484,3285.5,3284.7,0.20714633]
[1767712857034,3.24479484,3285.5,3284.4,0.786]
[1767712857035,0.20108743,3285.5,3284.5,2.0592402]
[1767712857212,0.20108743,3285.5,3284.8,0.01222307]
[1767712857416,9.17129107,3287.5,3285.0,0.01222307]
[1767712857626,1.93390955,3286.5,3284.6,2.02879417]
[1767712857812,3.04238035,3286.9,3285.1,2.02879417]
[1767712858015,6.1460981,3286.9,3285.5,0.01222307]
[1767712858306,6.1460981,3286.9,3285.3,2.02879417]
[1767712858307,6.1460981,3286.9,3285.3,2.81479417]
[1767712858512,0.61460981,3286.8,3285.4,0.28452337]
[1767712858716,1.93390955,3286.7,3284.8,2.0165711]
[1767712859033,1.93390955,3286.7,3284.7,3.04439135]
[1767712859034,1.93390955,3286.5,3284.7,3.04440991]
[1767712859235,1.93390955,3286.5,3284.6,0.001]
[1767712859405,0.27269096,3286.4,3284.7,3.04439534]
[1767712859609,0.27269096,3286.4,3285.1,2.0165711]
[1767712859920,0.0613374,3286.4,3285.3,3.04386205]
[1767712860321,0.0613374,3286.4,3285.4,0.03043769]
[1767712860672,0.0613374,3286.4,3285.4,0.02843769]
[1767712861442,0.0613374,3286.4,3285.0,0.01222307]
[1767712861614,0.06875698,3286.4,3284.9,0.786]
[1767712861813,0.06875698,3286.4,3285.0,6.08822978]
[1767712862037,0.0613374,3286.4,3285.2,1.93810522]
[1767712862240,0.0613374,3286.4,3285.3,0.03043862]
[1767712862440,6.15446338,3286.4,3285.1,0.69046721]
[1767712863145,6.15446338,3286.4,3284.9,0.786]
[1767712863346,0.11193739,3286.3,3284.9,0.786]
[1767712863546,0.11193739,3286.3,3285.0,0.0304414]
[1767712863766,3.15490602,3286.3,3285.1,3.04404736]
[1767712863919,0.00741958,3286.2,3284.9,0.786]
[1767712864114,0.62052942,3286.2,3285.0,3.04413916]
[1767712864320,0.11193739,3286.3,3285.1,0.03044047]
[1767712864544,0.11193739,3286.3,3285.0,3.04404741]
[1767712864545,3.15495408,3286.3,3285.0,3.04404741]
[1767712864742,3.15495408,3286.3,3285.0,6.10041051]
[1767712864743,0.11193739,3286.3,3285.0,6.10041051]
[1767712865041,0.11193739,3286.3,3285.2,0.01222307]
[1767712865270,0.11193739,3286.3,3285.1,0.03044047]
[1767712865491,0.11193739,3286.3,3284.9,3.0441742]
[1767712865492,0.00741958,3286.2,3284.9,3.0441742]
[1767712865782,6.19786974,3286.3,3285.6,4.98168934]
[1767712865783,0.11193739,3286.3,3285.6,4.98168934]
[1767712865941,0.11193739,3286.3,3285.7,0.786]
[1767712866569,0.11193739,3286.3,3285.6,1.93810522]
[1767712866774,0.11193739,3286.3,3285.7,0.49817772]
[1767712866952,0.11193739,3286.3,3285.2,0.786]
[1767712866953,3.15488512,3286.3,3285.2,0.786]
[1767712867651,6.19783285,3286.3,3285.2,0.786]
[1767712867857,6.19783285,3286.3,3284.7,0.01222307]
[1767712867858,1.96825604,3286.0,3284.6,0.001]
[1767712868052,1.73012183,3285.9,3284.6,0.001]
[1767712868378,1.02263805,3285.8,3284.6,0.001]
[1767712868544,0.00741958,3285.7,3284.6,0.001]
[1767712869347,0.793,3285.7,3284.6,0.001]